bitfinex/quotes_ETHUSD_20250807
["timestamp","ask_amount","ask_price","bid_price","bid_amount"]
[1754590321178,4.9768,3825.1,3824.9,0.55]
[1754590321372,4.019,3825.1,3824.9,0.55]
[1754590321680,0.9578,3825.0,3824.9,0.55]
[1754590322675,0.9578,3825.0,3824.9,3.16444743]
[1754590322883,0.494,3825.0,3824.9,3.16444743]
[1754590323193,4.019,3825.1,3825.0,2.61437908]
[1754590323393,4.017,3825.1,3824.9,0.55]
[1754590323536,4.9748,3825.1,3824.9,0.55]
[1754590323741,4.9748,3825.1,3824.9,3.1644033]
[1754590324173,4.9748,3825.1,3824.9,0.55]
[1754590324864,0.1304,3825.5,3825.1,2.61425882]
[1754590325054,4.9748,3825.4,3825.1,2.61425882]
[1754590325473,4.017,3825.4,3824.8,2.61448839]
[1754590325648,0.1304,3825.2,3824.8,2.61448839]
[1754590325847,0.9578,3825.1,3824.8,2.61448839]
[1754590326070,4.015,3825.0,3824.8,2.61448839]
[1754590326259,4.9728,3825.0,3824.8,2.61448839]
[1754590326878,4.015,3825.0,3824.9,2.61444743]
[1754590327342,0.1304,3825.2,3825.0,2.61436285]
[1754590327544,4.016,3825.1,3825.0,2.61436285]
[1754590327963,4.016,3825.1,3824.8,0.1304]
[1754590328145,4.016,3825.1,3824.8,2.74487557]
[1754590328474,4.9738,3825.1,3824.8,0.1304]
[1754590328674,4.9738,3825.1,3824.8,2.7449018]
[1754590328675,0.9578,3825.0,3824.8,2.7449018]
[1754590329173,0.9578,3825.0,3824.9,2.61444743]
[1754590329377,4.016,3825.1,3824.8,2.74488835]
[1754590329545,0.9578,3825.0,3824.8,2.74488835]
[1754590329745,0.9578,3825.0,3824.8,0.1304]
[1754590330254,0.9578,3825.0,3824.8,2.74490015]
[1754590330554,4.016,3825.1,3824.8,2.74490056]
[1754590330755,0.9578,3825.0,3824.8,0.1304]
[1754590331164,1.45518,3824.9,3824.4,2.61474404]
[1754590331343,4.013,3824.8,3824.4,0.1304]
[1754590331548,4.013,3824.8,3824.1,0.001]
[1754590331549,2.61486403,3824.3,3824.1,0.001]
[1754590331743,4.013,3824.2,3824.1,0.001]
[1754590331978,4.9708,3824.2,3824.1,0.001]
[1754590333246,7.58572599,3824.2,3824.1,0.001]
[1754590333680,4.9708,3824.2,3824.1,0.001]
[1754590335677,4.507,3824.2,3824.1,0.001]
[1754590335978,8.34427873,3824.2,3824.1,0.001]
[1754590336175,7.58572599,3824.2,3824.1,0.001]
[1754590337452,7.83000241,3824.2,3824.1,0.001]
[1754590339382,8.39228461,3824.2,3824.1,0.001]
[1754590339582,7.83000241,3824.2,3824.1,0.001]
[1754590339784,8.39231773,3824.2,3824.1,0.001]
[1754590340078,9.49298085,3824.2,3824.1,0.001]
[1754590340283,9.49298295,3824.2,3824.1,0.001]
[1754590341584,9.62338295,3824.2,3824.1,0.001]
[1754590341762,12.62338295,3824.2,3824.1,0.001]
[1754590342351,12.72816795,3824.2,3824.1,0.001]
[1754590348091,11.76936795,3824.2,3824.1,0.001]
[1754590348391,10.56386558,3824.2,3824.1,0.001]
[1754590348702,10.56338903,3824.2,3824.1,0.001]
[1754590348993,10.56337271,3824.2,3824.1,0.001]
[1754590349167,7.00305739,3824.2,3824.1,0.001]
[1754590350394,7.00305739,3824.2,3822.8,0.001]
[1754590350395,2.61547313,3823.4,3822.8,0.001]
[1754590350559,2.61547313,3823.4,3823.3,0.001]
[1754590350759,6.62947313,3823.4,3823.3,0.001]
[1754590350959,7.59237313,3823.4,3823.3,0.001]
[1754590351255,8.85685037,3823.4,3823.3,0.001]
[1754590351757,8.98725037,3823.4,3823.3,0.001]
[1754590352279,7.78064966,3823.4,3823.3,0.001]
[1754590353064,1.15117653,3823.4,3823.3,0.001]
[1754590353388,4.38798545,3823.4,3823.3,0.001]
[1754590353592,7.00345858,3823.4,3823.3,0.001]
[1754590353758,7.00245858,3823.4,3823.3,0.001]
[1754590353958,7.96535858,3823.4,3823.3,0.001]
[1754590355222,8.52629056,3823.4,3823.3,0.001]
[1754590355379,2.61574679,3823.0,3822.9,0.001]
[1754590355581,7.00273224,3823.0,3822.9,0.001]
[1754590355907,7.96563224,3823.0,3822.9,0.001]
[1754590356788,7.96663224,3823.0,3822.9,0.001]
[1754590357101,9.01688936,3823.0,3822.9,0.001]
[1754590357403,9.57767784,3823.0,3822.9,0.001]
[1754590358071,5.56367784,3823.0,3822.9,0.001]
[1754590358271,9.57667784,3823.0,3822.9,0.001]
[1754590358568,9.57567784,3823.0,3822.9,0.001]
[1754590359501,9.68049284,3823.0,3822.9,0.001]
[1754590360272,12.68049284,3823.0,3822.9,0.001]
[1754590360483,8.66849284,3823.0,3822.9,0.001]
[1754590360694,12.67949284,3823.0,3822.9,0.001]
[1754590361202,11.71659284,3823.0,3822.9,0.001]
[1754590361382,12.67949284,3823.0,3822.9,0.001]
[1754590362691,8.66849284,3823.0,3822.9,0.001]
[1754590362904,11.71559284,3823.0,3822.9,0.001]
[1754590363070,5.05058893,3823.0,3822.9,0.4984]
[1754590363276,0.37357362,3823.0,3822.9,0.4984]
[1754590363504,4.1414,3823.0,3822.9,0.943]
[1754590363681,4.38457362,3823.0,3822.9,0.4984]
[1754590364204,4.38457362,3823.0,3822.9,0.001]
[1754590364205,4.94548091,3823.0,3822.9,0.001]
[1754590365112,18.88457362,3823.0,3822.9,0.001]
[1754590365413,19.44548091,3823.0,3822.9,0.001]
[1754590365978,19.44448091,3823.0,3822.9,0.943]
[1754590366183,18.6404,3823.0,3822.9,0.943]
[1754590366728,18.6404,3823.0,3822.9,0.4984]
[1754590367196,18.6404,3823.0,3822.9,0.943]
[1754590367599,14.6304,3823.0,3822.9,0.943]
[1754590367779,18.6404,3823.0,3822.9,0.943]
[1754590367989,18.6404,3823.0,3822.9,0.001]
[1754590368217,18.88401232,3823.0,3822.9,0.001]
[1754590368810,18.88401232,3823.0,3822.9,0.4984]
[1754590369581,18.88401232,3823.0,3822.9,0.001]
[1754590369910,18.88401232,3823.0,3822.9,0.4984]
[1754590370111,18.88301232,3823.0,3822.9,0.943]
[1754590370284,14.87401232,3823.0,3822.9,0.943]
[1754590370685,18.88301232,3823.0,3822.9,0.943]
[1754590371080,18.88301232,3823.0,3822.9,0.4984]
[1754590371496,18.88301232,3823.0,3822.4,0.001]
[1754590371497,2.61608894,3822.5,3822.4,0.001]
[1754590371704,5.61629428,3822.2,3822.1,0.001]
[1754590371905,11.1728875,3822.2,3822.1,0.001]
[1754590372085,26.02883685,3822.2,3822.1,0.001]
[1754590372284,26.6357875,3822.2,3822.1,0.001]
[1754590372988,26.2067165,3822.2,3822.1,0.001]
[1754590373412,26.2057165,3822.2,3822.1,0.001]
[1754590373613,26.2057165,3822.2,3822.1,1e-08]
[1754590374808,25.96189717,3822.2,3822.1,1e-08]
[1754590375124,26.20553468,3822.2,3822.1,1e-08]
[1754590375419,26.20453468,3822.2,3822.1,1e-08]
[1754590375635,22.17153468,3822.2,3822.1,1e-08]
[1754590375923,26.20453468,3822.2,3822.1,1e-08]
[1754590378010,26.20438216,3822.2,3822.1,1e-08]
[1754590379221,2.61711593,3821.0,3820.9,0.001]
[1754590379426,6.92531486,3821.0,3820.9,0.001]
[1754590379605,7.4547067,3821.0,3820.9,0.001]
[1754590379807,21.9547067,3821.0,3820.9,0.001]
[1754590380596,22.8734067,3821.0,3820.9,0.001]
[1754590380834,23.16000381,3821.0,3820.9,0.001]
[1754590381191,26.16000381,3821.0,3820.9,0.001]
[1754590381725,22.12800381,3821.0,3820.9,0.001]
[1754590381939,25.24030381,3821.0,3820.9,0.001]
[1754590382224,26.29020381,3821.0,3820.9,0.001]
[1754590382592,21.09701882,3821.0,3820.9,0.001]
[1754590382942,25.84339283,3821.0,3820.9,0.001]
[1754590383427,26.76209283,3821.0,3820.9,0.001]
[1754590384728,21.80739283,3821.0,3820.9,0.001]
[1754590385034,25.84239283,3821.0,3820.9,0.001]
[1754590385523,26.76109283,3821.0,3820.9,0.001]
[1754590386945,26.76109283,3821.0,3820.9,1e-08]
[1754590388033,22.72609283,3821.0,3820.9,1e-08]
[1754590388533,26.76109283,3821.0,3820.9,1e-08]
[1754590389889,27.31109283,3821.0,3820.9,1e-08]
[1754590390492,23.27609283,3821.0,3820.9,1e-08]
[1754590390713,26.76009283,3821.0,3820.9,1e-08]
[1754590390912,25.84139283,3821.0,3820.9,1e-08]
[1754590391495,25.84069532,3821.0,3820.9,1e-08]
[1754590391897,25.84071076,3821.0,3820.9,1e-08]
[1754590392327,21.80671076,3821.0,3820.9,1e-08]
[1754590392636,25.84071076,3821.0,3820.9,1e-08]
[1754590393320,21.80671076,3821.0,3820.9,1e-08]
[1754590393544,26.75841076,3821.0,3820.9,1e-08]
[1754590393747,25.83971076,3821.0,3820.9,1e-08]
[1754590393914,21.80671076,3821.0,3820.9,1e-08]
[1754590394118,25.83971076,3821.0,3820.9,1e-08]
[1754590394330,21.80671076,3821.0,3820.9,1e-08]
[1754590394528,22.55312344,3821.0,3820.9,0.46000001]
[1754590394854,25.55212344,3821.0,3820.9,0.92710001]
[1754590395050,25.55212344,3821.0,3820.9,0.46000001]
[1754590395231,25.55312344,3821.0,3820.9,0.92710001]
[1754590395557,15.90300751,3821.0,3820.9,0.92710001]
[1754590395855,19.46890751,3821.0,3820.9,0.92710001]
[1754590397356,19.46921434,3821.0,3820.9,0.92710001]
[1754590397722,22.08633027,3821.0,3820.9,1e-08]
[1754590397917,19.46921434,3821.0,3820.9,0.46000001]
[1754590398124,15.43621434,3821.0,3820.9,0.46000001]
[1754590398461,19.46821434,3821.0,3820.9,0.92710001]
[1754590399358,22.08533027,3821.0,3820.9,1e-08]
[1754590399856,23.00403027,3821.0,3820.9,1e-08]
[1754590400157,22.08533027,3821.0,3820.9,1e-08]
[1754590400359,22.08582046,3821.0,3820.9,1e-08]
[1754590400563,23.00452046,3821.0,3820.9,1e-08]
[1754590400775,21.05382091,3821.0,3820.9,1e-08]
[1754590400973,26.00352091,3821.0,3820.9,1e-08]
[1754590402573,26.79003791,3821.0,3820.9,1e-08]
[1754590403241,25.87133791,3821.0,3820.9,1e-08]
[1754590403576,21.84033791,3821.0,3820.9,1e-08]
[1754590403726,25.87133791,3821.0,3820.9,1e-08]
[1754590404768,21.84033791,3821.0,3820.9,1e-08]
[1754590405062,19.46470498,3821.0,3820.9,0.92710001]
[1754590405261,22.08182091,3821.0,3820.9,0.92710001]
[1754590405556,22.08182091,3821.0,3820.9,0.46000001]
[1754590405767,19.46470498,3821.0,3820.9,0.46000001]
[1754590405953,4.96470498,3821.0,3820.9,0.92710001]
[1754590406263,7.58182091,3821.0,3820.9,0.92710001]
[1754590406463,22.08182091,3821.0,3820.9,0.92710001]
[1754590406630,19.46470498,3821.0,3820.9,0.92710001]
[1754590406826,15.43670498,3821.0,3820.9,0.92710001]
[1754590407027,19.46370498,3821.0,3820.9,0.92710001]
[1754590407237,19.46370498,3821.0,3820.9,0.46000001]
[1754590407964,19.46370498,3821.0,3820.9,0.92710001]
[1754590408462,19.33250498,3821.0,3820.9,1.28154488]
[1754590408665,19.33250498,3821.0,3820.9,3.54428444]
[1754590409254,15.30622342,3821.0,3820.9,3.54428444]
[1754590409564,19.3331989,3821.0,3820.9,3.54428444]
[1754590409725,19.3331989,3821.0,3820.9,4.1735634]
[1754590410284,22.87791483,3821.0,3820.9,1e-08]
[1754590410783,23.00911483,3821.0,3820.9,1e-08]
[1754590411133,26.00911483,3821.0,3820.9,1e-08]
[1754590414337,26.00918964,3821.0,3820.9,1e-08]
[1754590415271,25.56578964,3821.0,3820.9,1e-08]
[1754590415500,25.08158964,3821.0,3820.9,1e-08]
[1754590415773,25.56578964,3821.0,3820.9,1e-08]
[1754590415960,26.00918964,3821.0,3820.9,1e-08]
[1754590416475,2.61789755,3819.9,3819.5,0.452]
[1754590416679,4.83427371,3819.8,3819.6,0.452]
[1754590416847,0.1312,3819.7,3819.6,0.452]
[1754590417048,18.05504041,3819.7,3819.6,0.452]
[1754590417349,15.43703377,3819.7,3819.6,0.452]
[1754590417662,14.87512446,3819.7,3819.6,0.9148]
[1754590417982,14.87509699,3819.7,3819.6,0.9148]
[1754590418287,14.87509699,3819.7,3819.1,0.1312]
[1754590418288,15.43682059,3819.7,3819.1,0.1312]
[1754590418580,2.61815521,3819.5,3819.3,0.452]
[1754590418755,6.65323831,3819.4,3819.0,0.452]
[1754590418962,4.035,3819.3,3819.0,0.452]
[1754590419168,4.035,3819.3,3819.1,0.452]
[1754590419169,14.5,3819.2,3819.1,0.452]
[1754590419855,14.5,3819.2,3818.8,0.58854316]
[1754590420056,14.5,3819.2,3818.9,0.9148]
[1754590420376,4.034,3819.1,3819.0,0.9148]
[1754590420569,14.5,3819.2,3819.1,0.9148]
[1754590420883,18.534,3819.2,3819.1,0.9148]
[1754590421098,18.534,3819.2,3819.1,0.452]
[1754590421768,2.61843039,3819.1,3818.8,0.58854316]
[1754590421964,4.035,3819.0,3818.8,0.58854316]
[1754590422274,4.036,3818.9,3818.8,0.58854316]
[1754590422579,6.65455508,3818.9,3818.8,0.13654316]
[1754590422781,4.036,3818.9,3818.5,0.452]
[1754590422958,4.036,3818.9,3818.3,2.61896655]
[1754590423164,4.036,3818.9,3818.4,3.07088854]
[1754590423365,2.65141711,3818.8,3818.5,0.452]
[1754590423572,4.036,3818.7,3818.5,0.452]
[1754590423776,4.036,3818.7,3818.1,0.13653036]
[1754590423985,2.61895475,3818.4,3817.9,0.452]
[1754590424158,18.536,3818.3,3817.9,0.452]
[1754590424485,18.536,3818.3,3817.6,0.4628]
[1754590424486,18.536,3818.3,3818.0,0.452]
[1754590424653,18.536,3818.3,3818.0,2.61916868]
[1754590424850,18.536,3818.3,3818.1,0.452]
[1754590425049,18.536,3818.3,3817.9,2.61922919]
[1754590425292,18.536,3818.3,3817.8,0.452]
[1754590425587,21.15501393,3818.3,3817.8,0.452]
[1754590425751,18.536,3818.3,3817.8,0.452]
[1754590426359,0.96033793,3818.2,3816.8,2.6199958]
[1754590426575,2.61960204,3817.4,3816.9,0.14654084]
[1754590426748,4.036,3817.3,3817.0,0.452]
[1754590426948,0.4434,3818.3,3817.2,2.61972126]
[1754590427192,14.5,3817.7,3817.3,3.07164596]
[1754590427384,4.036,3817.6,3817.0,2.61984938]
[1754590427590,4.036,3817.6,3817.4,0.452]
[1754590427787,4.036,3817.6,3817.5,3.07151538]
[1754590427953,14.5,3817.7,3817.6,2.61944677]
[1754590428286,18.537,3817.7,3817.6,3.53424677]
[1754590428484,0.4842,3818.8,3817.6,3.53424677]
[1754590428485,3.06193459,3819.0,3818.0,2.61910404]
[1754590428786,3.06193459,3819.0,3818.1,2.61910172]
[1754590428787,0.1312,3818.2,3818.1,2.61910172]
[1754590428946,14.6312,3818.2,3818.1,3.07110172]
[1754590429153,18.537,3818.2,3818.1,3.53390172]
[1754590429386,4.037,3818.2,3818.1,4.16233487]
[1754590429887,4.038,3818.3,3818.2,2.61903514]
[1754590430046,14.5,3818.6,3818.4,2.6188537]
[1754590430251,14.5,3818.6,3818.5,2.61882938]
[1754590430471,18.537,3818.6,3818.5,2.61882938]
[1754590430678,18.537,3818.6,3818.5,3.07082938]
[1754590430873,14.5,3818.6,3818.5,3.68608805]
[1754590431078,14.5,3818.6,3818.5,4.28008805]
[1754590431079,18.537,3818.6,3818.5,4.28008805]
[1754590431279,4.036,3819.0,3818.9,2.61855508]
[1754590431705,4.036,3819.0,3818.9,3.66455508]
[1754590432003,4.036,3819.0,3818.9,5.60461401]
[1754590432488,3.54527941,3820.2,3819.3,2.61822146]
[1754590432691,0.1312,3819.6,3818.9,2.53405893]
[1754590432886,0.1312,3819.6,3819.5,2.61814373]
[1754590433086,0.1312,3820.0,3819.5,2.6180973]
[1754590433494,18.538,3819.9,3819.5,2.6180973]
[1754590434382,14.5,3819.9,3819.6,3.07002998]
[1754590434586,14.5,3819.9,3819.7,2.61800664]
[1754590434782,14.5,3819.9,3819.8,3.06993811]
[1754590435281,0.4842,3820.6,3820.0,2.61780104]
[1754590435467,0.1312,3820.2,3820.0,2.61780104]
[1754590435674,18.537,3820.1,3820.0,0.452]
[1754590436175,18.537,3820.1,3819.9,2.61786476]
[1754590436379,18.537,3820.1,3819.9,3.06986476]
[1754590436573,18.537,3820.1,3819.9,3.0698537]
[1754590437294,18.537,3820.1,3819.7,2.61800083]
[1754590437481,18.537,3820.1,3819.1,0.452]
[1754590437482,4.9636,3820.0,3819.1,0.452]
[1754590437676,4.036,3820.0,3819.7,2.61799954]
[1754590437874,4.036,3820.0,3819.6,2.61805008]
[1754590438084,14.5,3819.9,3819.7,2.6179991]
[1754590438279,4.035,3819.8,3819.7,2.6179991]
[1754590438923,4.035,3819.8,3819.7,3.0992991]
[1754590439483,0.1312,3820.2,3819.8,2.61793811]
[1754590439815,4.035,3820.1,3819.5,0.1312]
[1754590439996,18.535,3820.1,3819.6,2.61801902]
[1754590440198,19.4577,3820.1,3819.6,2.61801902]
[1754590440384,0.4543,3820.0,3819.6,2.61801902]
[1754590440587,4.034,3819.9,3819.6,2.61801902]
[1754590441085,4.034,3819.9,3819.7,2.61799764]
[1754590441412,4.034,3819.9,3819.8,2.61793811]
[1754590441612,0.1312,3820.2,3819.8,2.61791703]
[1754590441782,4.032,3820.1,3819.8,2.61791703]
[1754590441980,14.5,3820.0,3819.8,2.61791703]
[1754590442179,14.5,3820.0,3819.9,2.61786957]
[1754590442523,0.1312,3820.2,3820.1,2.61773252]
[1754590443016,14.5,3820.3,3820.2,2.61766399]
[1754590443219,0.4543,3820.8,3820.6,2.61738993]
[1754590443220,0.1312,3820.8,3820.6,2.61738993]
[1754590443516,4.031,3820.7,3820.6,2.61738993]
[1754590443717,18.531,3820.7,3820.6,2.61738993]
[1754590444116,18.531,3820.7,3820.5,2.61744397]
[1754590444311,4.031,3820.6,3820.5,2.61744397]
[1754590446022,4.031,3820.6,3820.4,2.61750694]
[1754590446722,4.031,3820.6,3820.5,2.61745844]
[1754590446910,4.031,3820.6,3820.4,2.61751109]
[1754590447111,4.031,3820.6,3820.5,2.61745844]
[1754590447417,18.531,3820.6,3820.5,2.61745844]
[1754590447907,18.531,3820.6,3820.4,2.61750582]
[1754590448104,18.531,3820.6,3820.5,2.61745844]
[1754590450290,6.289,3821.3,3820.7,2.61728791]
[1754590450291,0.4543,3821.2,3820.7,2.61728791]
[1754590450493,0.4543,3821.2,3820.5,3.09875844]
[1754590450494,0.1312,3821.0,3820.5,2.74863748]
[1754590450686,4.9477,3820.9,3820.5,0.1312]
[1754590450891,0.9227,3820.8,3820.5,0.1312]
[1754590451088,4.025,3820.7,3820.3,2.61758488]
[1754590451392,0.9227,3820.6,3820.3,0.1312]
[1754590451589,0.9227,3820.6,3817.9,2.61920232]
[1754590451590,4.025,3820.5,3819.6,0.4813]
[1754590451789,1.0539,3820.4,3819.7,2.61799049]
[1754590451995,4.9477,3820.3,3819.7,2.74916273]
[1754590452190,4.9477,3820.3,3819.3,4.025]
[1754590452191,0.1312,3820.2,3819.6,0.1312]
[1754590452409,0.1312,3819.8,3819.4,2.61821032]
[1754590452730,4.9487,3819.7,3819.2,5.74953789]
[1754590452918,0.9227,3819.6,3819.2,2.74952664]
[1754590453118,4.026,3819.5,3819.2,2.61832664]
[1754590453496,0.9227,3819.4,3819.2,2.61832664]
[1754590453692,0.9227,3819.4,3819.1,0.1312]
[1754590453693,18.526,3819.3,3819.1,0.1312]
[1754590453929,18.526,3819.3,3818.3,2.6189364]
[1754590453930,14.54735681,3819.2,3816.4,0.13662562]
[1754590454243,14.54735681,3819.2,3813.2,1.32553657]
[1754590454244,2.62026445,3816.5,3815.5,0.4813]
[1754590454434,0.1312,3816.4,3815.9,0.1312]
[1754590454634,18.61875423,3816.3,3816.0,0.4813]
[1754590454837,0.1312,3816.4,3816.1,0.4813]
[1754590455210,4.087,3816.9,3816.2,0.4418]
[1754590455411,18.587,3816.9,3816.5,0.1312]
[1754590455621,18.587,3816.9,3816.6,0.4813]
[1754590455839,14.5,3816.9,3816.7,0.4813]
[1754590456003,4.088,3817.2,3816.8,0.1312]
[1754590456203,4.088,3817.1,3816.9,0.4813]
[1754590456413,2.61971271,3817.3,3816.8,0.1312]
[1754590456706,15.73723099,3817.0,3814.9,0.4813]
[1754590456924,5.0107,3817.2,3815.3,2.62102586]
[1754590456925,0.1312,3815.7,3815.3,2.62102586]
[1754590457101,4.121,3815.7,3815.4,0.6125]
[1754590457312,4.121,3815.8,3815.5,0.4813]
[1754590457510,14.5,3815.6,3815.3,0.4418]
[1754590457711,4.12,3816.1,3815.7,0.1312]
[1754590458022,4.12,3816.1,3815.4,0.4418]
[1754590458023,4.12,3816.1,3815.5,0.1312]
[1754590458228,18.62,3816.1,3815.7,0.1312]
[1754590458400,18.62,3816.1,3815.0,0.61783127]
[1754590458401,0.1312,3815.7,3815.3,0.4813]
[1754590458605,4.2622,3815.7,3815.4,0.4813]
[1754590458943,4.2622,3815.7,3815.5,0.4813]
[1754590459245,4.2632,3815.7,3815.5,0.4813]
[1754590459738,4.131,3815.7,3815.6,0.4813]
[1754590459939,4.13,3815.9,3815.6,0.4813]
[1754590460239,0.1312,3816.1,3815.7,0.4813]
[1754590460415,0.1312,3816.1,3815.5,0.1312]
[1754590460631,0.1312,3816.1,3815.8,0.4813]
[1754590460833,0.1312,3816.1,3815.9,1.09151025]
[1754590461027,18.629,3816.3,3816.0,0.4813]
[1754590461215,18.7602,3816.3,3816.0,0.4813]
[1754590461420,19.2286,3816.3,3815.8,2.751863]
[1754590461628,15.0996,3816.3,3815.8,2.751863]
[1754590461834,4.128,3816.2,3815.9,2.62061124]
[1754590462233,4.128,3816.2,3815.8,2.75186969]
[1754590462433,4.128,3816.2,3815.8,3.23316969]
[1754590463039,4.128,3816.2,3815.8,3.23316625]
[1754590463445,4.128,3816.2,3815.8,0.1312]
[1754590463645,4.128,3816.2,3815.9,3.10185251]
[1754590463842,14.6312,3816.3,3816.0,2.62054116]
[1754590464045,14.6312,3816.3,3816.1,2.6204764]
[1754590464282,14.6312,3816.3,3815.8,2.75187015]
[1754590464283,14.5,3816.3,3816.2,0.4813]
[1754590464428,18.624,3816.3,3816.2,0.4813]
[1754590464626,18.624,3816.3,3816.2,3.10170773]
[1754590465151,4.124,3816.3,3816.2,3.10170773]
[1754590465956,14.5,3816.6,3816.3,2.62031412]
[1754590466151,4.126,3816.5,3816.3,2.62031412]
[1754590466336,4.126,3816.5,3816.1,0.1312]
[1754590466735,4.5944,3816.5,3816.1,0.1312]
[1754590466935,4.126,3816.5,3816.3,2.62028809]
[1754590467336,4.126,3816.5,3816.4,2.62027041]
[1754590468775,0.1312,3816.7,3816.1,0.1312]
[1754590468979,0.4726,3817.1,3816.6,2.6201331]
[1754590469297,0.1312,3817.0,3816.7,0.4729]
[1754590469436,18.619,3816.9,3816.7,3.09294428]
[1754590470065,4.118,3816.8,3816.7,3.09294428]
[1754590470539,4.118,3816.8,3816.7,0.4729]
[1754590471141,4.118,3816.8,3816.4,0.6041]
[1754590471375,4.118,3816.8,3816.7,2.62006445]
[1754590471539,14.6312,3817.0,3816.8,2.61998992]
[1754590471540,14.5,3817.0,3816.8,2.61998992]
[1754590471741,0.1312,3817.2,3816.7,0.1312]
[1754590471944,3.24487222,3817.4,3816.9,0.4729]
[1754590472140,4.116,3817.3,3817.0,0.4729]
[1754590472343,18.616,3817.3,3817.1,3.09265628]
[1754590472678,18.616,3817.3,3817.2,2.61972126]
[1754590472882,18.614,3817.3,3817.2,2.61972126]
[1754590473037,14.5,3817.3,3817.2,2.61972126]
[1754590473383,0.1312,3817.6,3817.5,2.61951538]
[1754590473674,14.6312,3817.6,3817.5,2.61951538]
[1754590473875,14.5,3817.6,3817.5,2.61951538]
[1754590474042,18.613,3817.6,3817.5,2.61951538]
[1754590474243,4.113,3817.6,3817.5,2.61951538]
[1754590474566,0.1312,3817.7,3817.6,2.61944677]
[1754590474765,0.1312,3817.7,3817.3,2.61965263]
[1754590474766,14.6312,3817.7,3817.5,2.61949894]
[1754590474960,4.112,3817.6,3817.5,2.61949894]
[1754590475177,4.111,3817.6,3817.2,3.22381123]
[1754590475341,4.111,3817.6,3817.4,2.61956578]
[1754590475544,15.1038,3817.7,3817.5,2.61949701]
[1754590475748,4.111,3817.6,3817.5,2.61951538]
[1754590476181,4.111,3817.6,3817.2,0.6041]
[1754590476483,4.111,3817.6,3817.4,2.61951892]
[1754590476653,4.109,3817.5,3817.4,2.61958401]
[1754590476852,4.109,3817.5,3817.4,3.22368401]
[1754590477085,14.5,3817.7,3817.6,2.61944677]
[1754590477287,15.29803893,3817.7,3817.6,2.61944677]
[1754590477454,19.40703893,3817.7,3817.6,2.61944677]
[1754590477650,0.79803893,3817.7,3817.6,2.61944677]
[1754590477858,4.66454634,3817.7,3817.6,3.09234677]
[1754590478169,4.90603893,3817.7,3817.6,3.22354677]
[1754590478370,0.002,3818.2,3818.1,2.61910374]
[1754590478575,4.91041441,3818.2,3818.1,2.61910374]
[1754590478788,4.66753647,3818.2,3818.1,2.61910374]
[1754590479662,4.66753647,3818.2,3818.0,2.75035797]
[1754590479861,5.13813647,3818.1,3818.0,2.61917234]
[1754590480285,4.66553647,3818.1,3817.8,0.1312]
[1754590480484,0.55753647,3818.0,3817.5,0.1312]
[1754590480692,4.66353647,3817.9,3817.8,2.61930955]
[1754590481399,0.55753647,3817.9,3817.8,2.61930955]
[1754590481694,4.66453647,3817.9,3817.8,3.22340955]
[1754590482289,4.90546011,3817.9,3817.8,3.22340955]
[1754590482992,0.80046011,3817.9,3817.8,3.68880955]
[1754590483196,0.80046011,3817.9,3817.8,4.31962948]
[1754590483401,0.80046011,3817.9,3817.8,3.38132948]
[1754590483603,1.27306011,3817.9,3817.8,2.61930955]
[1754590484803,0.80046011,3817.9,3817.8,2.61930955]
[1754590485372,4.66153647,3817.9,3817.8,3.09220955]
[1754590485572,4.66153647,3817.9,3817.8,3.68880955]
[1754590485972,0.55753647,3817.9,3817.8,3.68880955]
[1754590486837,0.55753647,3817.9,3817.8,6.04156511]
[1754590487878,0.55753647,3817.9,3817.8,5.57616511]
[1754590488211,0.55753647,3817.9,3817.8,5.10326511]
[1754590488412,0.55753647,3817.9,3817.4,2.61956449]
[1754590488413,0.59027698,3817.9,3815.4,2.62093801]
[1754590488713,3.80065993,3817.8,3816.6,2.62008315]
[1754590489006,3.80065993,3817.8,3816.5,3.09308428]
[1754590489007,6.45265033,3817.7,3816.5,3.09308428]
[1754590489207,0.80065993,3817.6,3816.5,3.09308428]
[1754590489409,4.92765993,3817.5,3816.6,2.62011244]
[1754590489573,0.55753647,3817.4,3816.7,2.62005656]
[1754590489775,0.55753647,3817.3,3816.8,0.4729]
[1754590490003,4.68353647,3817.2,3816.9,0.4729]
[1754590490209,0.55753647,3817.1,3816.9,0.4729]
[1754590490514,0.55753647,3817.0,3816.8,2.61999465]
[1754590490714,4.68353647,3816.9,3816.8,2.61999465]
[1754590490909,4.68353647,3816.9,3816.8,3.09289465]
[1754590493075,4.68353647,3816.9,3816.7,2.62005178]
[1754590493313,0.55753647,3816.8,3816.7,2.62005178]
[1754590493813,4.67753647,3816.8,3816.7,2.62005178]
[1754590494196,4.67753647,3816.8,3816.7,3.09295178]
[1754590494514,4.67753647,3816.8,3816.1,2.6204293]
[1754590494515,4.67753647,3816.8,3816.6,2.62013251]
[1754590494724,0.55753647,3816.7,3816.6,2.6201331]
[1754590494883,0.55753647,3816.7,3816.6,3.0855331]
[1754590495509,0.55753647,3816.7,3816.6,3.5584331]
[1754590497923,0.55753647,3816.7,3816.6,3.0930331]
[1754590500086,4.66853647,3816.7,3816.6,3.0930331]
[1754590500591,4.66853647,3816.7,3816.4,3.0]
[1754590500792,4.111,3816.7,3816.6,2.6201331]
[1754590501022,4.67315341,3816.7,3816.6,3.1112331]
[1754590501201,4.67315341,3816.7,3816.6,3.5454331]
[1754590501202,4.67215341,3816.7,3816.6,3.5454331]
[1754590501629,0.002,3817.4,3817.3,2.61965263]
[1754590501842,4.91827991,3817.4,3817.3,2.61965263]
[1754590502323,4.91827991,3817.4,3817.3,3.11075263]
[1754590502524,0.80827991,3817.4,3817.3,3.11075263]
[1754590502726,4.91827991,3817.4,3817.3,3.11075263]